[Event "Titled Tuesday Blitz March 07 Late 2023"]
[White "Michalski, Olaf"]
[Black "Botez, Alexandra"]
[WhiteFideId "1106740"]
[BlackFideId "2603365"]
[WhiteElo "2173"]
[BlackElo "2059"]
[Result "0-1"]
[Round "04"]
[TimeControl "180+2"]
[Date "2023.03.07"]
[WhiteClock "0:00:19"]
[BlackClock "0:01:41"]

1. d4 {[%clk 0:02:58]}  Nf6 {[%clk 0:02:59]} 2. Nf3 {[%clk 0:02:58]}  d5 {[%clk 0:02:57]} 3. c4 {[%clk 0:02:56]}  dxc4 {[%clk 0:02:57]} 4. e3 {[%clk 0:02:55]}  Bf5 {[%clk 0:02:56]} 5. Bxc4 {[%clk 0:02:52]}  e6 {[%clk 0:02:55]} 6. O-O {[%clk 0:02:42]}  Bd6 {[%clk 0:02:54]} 7. Qb3 {[%clk 0:02:35]}  Be4 {[%clk 0:02:22]} 8. Nbd2 {[%clk 0:02:31]}  Bc6 {[%clk 0:02:12]} 9. Ne5 {[%clk 0:02:22]}  Bxe5 {[%clk 0:02:02]} 10. dxe5 {[%clk 0:02:22]}  Ng4 {[%clk 0:02:02]} 11. f4 {[%clk 0:01:33]}  Qh4 {[%clk 0:01:52]} 12. h3 {[%clk 0:01:20]}  Qg3 {[%clk 0:01:44]} 13. e4 {[%clk 0:00:19]}  Qh2# {[%clk 0:01:41]} 0-1


[Site "https://www.chess.com"]

[Event "Titled Tuesday Blitz March 07 Late 2023"]
[White "Ramirez, Maria Eugenia"]
[Black "Smith, Garrett L"]
[WhiteFideId "3301680"]
[BlackFideId "2024829"]
[WhiteElo "1842"]
[BlackElo "2267"]
[Result "1-0"]
[Round "04"]
[TimeControl "180+2"]
[Date "2023.03.07"]
[WhiteClock "0:00:04"]
[BlackClock "0:00:01"]

1. e4 {[%clk 0:03:00]}  c5 {[%clk 0:03:00]} 2. c3 {[%clk 0:03:00]}  d5 {[%clk 0:02:59]} 3. exd5 {[%clk 0:03:00]}  Qxd5 {[%clk 0:03:00]} 4. Nf3 {[%clk 0:03:00]}  Nc6 {[%clk 0:03:00]} 5. Na3 {[%clk 0:03:00]}  Bf5 {[%clk 0:02:56]} 6. Nb5 {[%clk 0:02:56]}  O-O-O {[%clk 0:02:48]} 7. d4 {[%clk 0:02:33]}  cxd4 {[%clk 0:02:35]} 8. cxd4 {[%clk 0:02:33]}  e5 {[%clk 0:02:34]} 9. Be3 {[%clk 0:02:29]}  exd4 {[%clk 0:01:54]} 10. Nfxd4 {[%clk 0:02:11]}  Bb4+ {[%clk 0:01:53]} 11. Ke2 {[%clk 0:01:54]}  Qc4+ {[%clk 0:01:26]} 12. Kf3 {[%clk 0:01:48]}  Qd5+ {[%clk 0:01:27]} 13. Kg3 {[%clk 0:01:45]}  Bd6+ {[%clk 0:01:25]} 14. f4 {[%clk 0:01:30]}  Nf6 {[%clk 0:01:24]} 15. Nxf5 {[%clk 0:01:24]}  Ne4+ {[%clk 0:01:24]} 16. Kf3 {[%clk 0:01:13]}  Qxf5 {[%clk 0:01:19]} 17. g4 {[%clk 0:01:04]}  Qe6 {[%clk 0:01:11]} 18. Rc1 {[%clk 0:00:47]}  Kb8 {[%clk 0:00:58]} 19. Qc2 {[%clk 0:00:43]}  Rhe8 {[%clk 0:00:52]} 20. Bc4 {[%clk 0:00:38]}  Qe7 {[%clk 0:00:50]} 21. Nxd6 {[%clk 0:00:31]}  Nxd6 {[%clk 0:00:46]} 22. Rhe1 {[%clk 0:00:29]}  Qh4 {[%clk 0:00:42]} 23. Qg2 {[%clk 0:00:23]}  Qf6 {[%clk 0:00:31]} 24. Bd5 {[%clk 0:00:18]}  Nd4+ {[%clk 0:00:29]} 25. Kg3 {[%clk 0:00:10]}  h5 {[%clk 0:00:25]} 26. g5 {[%clk 0:00:08]}  N4f5+ {[%clk 0:00:22]} 27. Kh3 {[%clk 0:00:07]}  Qg6 {[%clk 0:00:19]} 28. Bc5 {[%clk 0:00:04]}  b6 {[%clk 0:00:16]} 29. Bxd6+ {[%clk 0:00:03]}  Nxd6 {[%clk 0:00:16]} 30. Bc6 {[%clk 0:00:03]}  Qf5+ {[%clk 0:00:15]} 31. Kg3 {[%clk 0:00:03]}  h4+ {[%clk 0:00:15]} 32. Kf3 {[%clk 0:00:02]}  Nb5 {[%clk 0:00:10]} 33. Rxe8 {[%clk 0:00:02]}  Rxe8 {[%clk 0:00:05]} 34. Bxe8 {[%clk 0:00:03]}  Nd4+ {[%clk 0:00:05]} 35. Ke3 {[%clk 0:00:03]}  Qe6+ {[%clk 0:00:01]} 36. Qe4 {[%clk 0:00:04]} 1-0


[Site "https://www.chess.com"]

[Event "Titled Tuesday Blitz March 07 Late 2023"]
[White "Curtis, John"]
[Black "Schut, Han"]
[WhiteFideId "3200256"]
[BlackFideId "1005561"]
[WhiteElo "2203"]
[BlackElo "2024"]
[Result "0-1"]
[Round "04"]
[TimeControl "180+2"]
[Date "2023.03.07"]
[WhiteClock "0:00:03"]
[BlackClock "0:00:22"]

1. d4 {[%clk 0:03:00]}  Nf6 {[%clk 0:02:59]} 2. c4 {[%clk 0:03:00]}  g6 {[%clk 0:02:58]} 3. Nc3 {[%clk 0:03:00]}  d5 {[%clk 0:02:59]} 4. cxd5 {[%clk 0:02:59]}  Nxd5 {[%clk 0:02:59]} 5. e4 {[%clk 0:02:58]}  Nxc3 {[%clk 0:02:59]} 6. bxc3 {[%clk 0:02:59]}  c5 {[%clk 0:03:00]} 7. Be3 {[%clk 0:02:58]}  Qa5 {[%clk 0:02:58]} 8. Qd2 {[%clk 0:02:57]}  Bg7 {[%clk 0:02:56]} 9. Rd1 {[%clk 0:02:43]}  Nc6 {[%clk 0:02:55]} 10. Nf3 {[%clk 0:02:35]}  Bg4 {[%clk 0:02:54]} 11. Be2 {[%clk 0:02:35]}  Rd8 {[%clk 0:02:50]} 12. O-O {[%clk 0:02:15]}  Bxf3 {[%clk 0:02:49]} 13. gxf3 {[%clk 0:02:08]}  cxd4 {[%clk 0:02:46]} 14. cxd4 {[%clk 0:02:07]}  Qxd2 {[%clk 0:02:46]} 15. Rxd2 {[%clk 0:02:07]}  Nxd4 {[%clk 0:02:39]} 16. Bxd4 {[%clk 0:02:00]}  Bxd4 {[%clk 0:02:35]} 17. Rfd1 {[%clk 0:01:58]}  e5 {[%clk 0:02:31]} 18. Bc4 {[%clk 0:01:58]}  Ke7 {[%clk 0:02:28]} 19. f4 {[%clk 0:01:53]}  f6 {[%clk 0:02:28]} 20. Bd5 {[%clk 0:01:51]}  b6 {[%clk 0:02:20]} 21. fxe5 {[%clk 0:01:38]}  fxe5 {[%clk 0:02:12]} 22. Rc1 {[%clk 0:01:38]}  Rd7 {[%clk 0:02:12]} 23. Rc6 {[%clk 0:01:35]}  Rf8 {[%clk 0:01:46]} 24. Kg2 {[%clk 0:01:34]}  Rf6 {[%clk 0:01:36]} 25. Rxf6 {[%clk 0:01:29]}  Kxf6 {[%clk 0:01:36]} 26. f4 {[%clk 0:01:28]}  Bc5 {[%clk 0:01:32]} 27. fxe5+ {[%clk 0:01:26]}  Kxe5 {[%clk 0:01:33]} 28. Rd3 {[%clk 0:01:23]}  Rd6 {[%clk 0:01:33]} 29. Rh3 {[%clk 0:01:19]}  h5 {[%clk 0:01:33]} 30. Rg3 {[%clk 0:01:14]}  Rf6 {[%clk 0:01:32]} 31. Rg5+ {[%clk 0:01:01]}  Kf4 {[%clk 0:01:22]} 32. h4 {[%clk 0:01:01]}  Ke3 {[%clk 0:01:20]} 33. e5 {[%clk 0:00:57]}  Rf2+ {[%clk 0:01:15]} 34. Kh3 {[%clk 0:00:55]}  Rd2 {[%clk 0:01:14]} 35. Bb3 {[%clk 0:00:42]}  Kf4 {[%clk 0:01:08]} 36. Rxg6 {[%clk 0:00:28]}  Rd3+ {[%clk 0:01:02]} 37. Kg2 {[%clk 0:00:26]}  Kxe5 {[%clk 0:00:54]} 38. Rg5+ {[%clk 0:00:26]}  Kf4 {[%clk 0:00:54]} 39. Rxh5 {[%clk 0:00:26]}  Rd2+ {[%clk 0:00:54]} 40. Kf1 {[%clk 0:00:24]}  Rh2 {[%clk 0:00:52]} 41. Rh7 {[%clk 0:00:20]}  a5 {[%clk 0:00:52]} 42. h5 {[%clk 0:00:17]}  Kf3 {[%clk 0:00:49]} 43. Rf7+ {[%clk 0:00:16]}  Kg4 {[%clk 0:00:50]} 44. Bd1+ {[%clk 0:00:11]}  Kg5 {[%clk 0:00:46]} 45. a4 {[%clk 0:00:09]}  Rh4 {[%clk 0:00:38]} 46. Rg7+ {[%clk 0:00:08]}  Kf6 {[%clk 0:00:36]} 47. Rg6+ {[%clk 0:00:08]}  Kf7 {[%clk 0:00:36]} 48. Bb3+ {[%clk 0:00:03]}  Ke7 {[%clk 0:00:28]} 49. h6 {[%clk 0:00:03]}  Bd4 {[%clk 0:00:22]} 0-1


[Site "https://www.chess.com"]

[Event "Titled Tuesday Blitz March 07 Late 2023"]
[White "Kohler, Aran"]
[Black "Jesusesmifuerza"]
[WhiteFideId "1002856"]
[WhiteElo "2242"]
[BlackElo "2045"]
[Result "0-1"]
[Round "04"]
[TimeControl "180+2"]
[Date "2023.03.07"]
[WhiteClock "0:00:04"]
[BlackClock "0:00:03"]

1. Nf3 {[%clk 0:02:59]}  d5 {[%clk 0:02:59]} 2. d4 {[%clk 0:03:00]}  e6 {[%clk 0:02:59]} 3. Bf4 {[%clk 0:02:59]}  Bd6 {[%clk 0:02:59]} 4. Bg3 {[%clk 0:02:59]}  Nf6 {[%clk 0:02:59]} 5. e3 {[%clk 0:02:59]}  O-O {[%clk 0:03:00]} 6. Nbd2 {[%clk 0:02:59]}  b6 {[%clk 0:03:00]} 7. Bd3 {[%clk 0:02:59]}  Bb7 {[%clk 0:03:00]} 8. Ne5 {[%clk 0:02:52]}  Ne4 {[%clk 0:02:57]} 9. f4 {[%clk 0:02:15]}  f6 {[%clk 0:02:46]} 10. Nef3 {[%clk 0:02:13]}  c5 {[%clk 0:02:38]} 11. c3 {[%clk 0:02:11]}  Nd7 {[%clk 0:02:29]} 12. Rc1 {[%clk 0:02:03]}  Rc8 {[%clk 0:02:25]} 13. O-O {[%clk 0:02:00]}  Qe7 {[%clk 0:02:09]} 14. Bh4 {[%clk 0:01:48]}  Qe8 {[%clk 0:01:59]} 15. Bb1 {[%clk 0:01:43]}  cxd4 {[%clk 0:01:39]} 16. exd4 {[%clk 0:01:41]}  f5 {[%clk 0:01:21]} 17. Ne5 {[%clk 0:01:36]}  Nxe5 {[%clk 0:01:19]} 18. fxe5 {[%clk 0:01:33]}  Be7 {[%clk 0:01:20]} 19. Bxe7 {[%clk 0:01:32]}  Qxe7 {[%clk 0:01:20]} 20. Nf3 {[%clk 0:01:14]}  Ba6 {[%clk 0:01:16]} 21. Bd3 {[%clk 0:01:11]}  Bxd3 {[%clk 0:01:14]} 22. Qxd3 {[%clk 0:01:12]}  Rc7 {[%clk 0:01:00]} 23. Nd2 {[%clk 0:01:08]}  Nxd2 {[%clk 0:00:55]} 24. Qxd2 {[%clk 0:01:08]}  b5 {[%clk 0:00:55]} 25. Qe2 {[%clk 0:01:05]}  a6 {[%clk 0:00:55]} 26. a3 {[%clk 0:01:04]}  Rb8 {[%clk 0:00:52]} 27. Rf2 {[%clk 0:00:58]}  a5 {[%clk 0:00:52]} 28. Rcf1 {[%clk 0:00:56]}  b4 {[%clk 0:00:46]} 29. cxb4 {[%clk 0:00:56]}  axb4 {[%clk 0:00:46]} 30. a4 {[%clk 0:00:57]}  b3 {[%clk 0:00:44]} 31. g4 {[%clk 0:00:52]}  g6 {[%clk 0:00:41]} 32. gxf5 {[%clk 0:00:46]}  exf5 {[%clk 0:00:38]} 33. Qa6 {[%clk 0:00:45]}  Ra7 {[%clk 0:00:31]} 34. Qc6 {[%clk 0:00:43]}  Qd7 {[%clk 0:00:25]} 35. Qf6 {[%clk 0:00:43]}  Qf7 {[%clk 0:00:22]} 36. Qd6 {[%clk 0:00:40]}  Qc7 {[%clk 0:00:20]} 37. Qxd5+ {[%clk 0:00:39]}  Kg7 {[%clk 0:00:18]} 38. Ra1 {[%clk 0:00:19]}  Rd8 {[%clk 0:00:16]} 39. Qxb3 {[%clk 0:00:15]}  Rxd4 {[%clk 0:00:13]} 40. Qe3 {[%clk 0:00:10]}  Re4 {[%clk 0:00:09]} 41. Qd2 {[%clk 0:00:08]}  Rxe5 {[%clk 0:00:08]} 42. b3 {[%clk 0:00:08]}  Qc5 {[%clk 0:00:06]} 43. Kf1 {[%clk 0:00:06]}  Rae7 {[%clk 0:00:05]} 44. Rd1 {[%clk 0:00:06]}  Qe3 {[%clk 0:00:05]} 45. Kg2 {[%clk 0:00:04]}  Qxd2 {[%clk 0:00:04]} 46. Rfxd2 {[%clk 0:00:03]}  Re3 {[%clk 0:00:03]} 47. Re2 {[%clk 0:00:04]}  Rxe2+ {[%clk 0:00:03]} 48. Kf3 {[%clk 0:00:03]}  R2e3+ {[%clk 0:00:04]} 49. Kf2 {[%clk 0:00:03]}  Rxb3 {[%clk 0:00:05]} 50. Ra1 {[%clk 0:00:02]}  Rb4 {[%clk 0:00:04]} 51. a5 {[%clk 0:00:03]}  Ra7 {[%clk 0:00:04]} 52. a6 {[%clk 0:00:04]}  Rb6 {[%clk 0:00:05]} 53. Kg3 {[%clk 0:00:03]}  Rbxa6 {[%clk 0:00:05]} 54. Rd1 {[%clk 0:00:03]}  Re7 {[%clk 0:00:04]} 55. Kf4 {[%clk 0:00:03]}  Rae6 {[%clk 0:00:04]} 56. Rd5 {[%clk 0:00:02]}  Re4+ {[%clk 0:00:04]} 57. Kg3 {[%clk 0:00:03]}  Re3+ {[%clk 0:00:04]} 58. Kg2 {[%clk 0:00:03]}  Re2+ {[%clk 0:00:04]} 59. Kg3 {[%clk 0:00:04]}  R7e3+ {[%clk 0:00:03]} 60. Kf4 {[%clk 0:00:04]}  Re4+ {[%clk 0:00:03]} 61. Kg3 {[%clk 0:00:05]}  R2e3+ {[%clk 0:00:04]} 62. Kg2 {[%clk 0:00:05]}  Re7 {[%clk 0:00:04]} 63. Kf2 {[%clk 0:00:05]}  R3e6 {[%clk 0:00:05]} 64. Kf3 {[%clk 0:00:05]}  Kf6 {[%clk 0:00:05]} 65. Rd4 {[%clk 0:00:06]}  g5 {[%clk 0:00:05]} 66. Kf2 {[%clk 0:00:06]}  g4 {[%clk 0:00:05]} 67. Kg3 {[%clk 0:00:05]}  Kg5 {[%clk 0:00:05]} 68. Kg2 {[%clk 0:00:05]}  h5 {[%clk 0:00:06]} 69. Rd2 {[%clk 0:00:05]}  Re2+ {[%clk 0:00:05]} 70. Kg3 {[%clk 0:00:03]}  Rxd2 {[%clk 0:00:05]} 71. h4+ {[%clk 0:00:04]}  gxh3 {[%clk 0:00:03]} 0-1


[Site "https://www.chess.com"]

[Event "Titled Tuesday Blitz March 07 Late 2023"]
[White "Vargas, Mauricio"]
[Black "Antonova, Nadezhda"]
[WhiteFideId "4404572"]
[BlackFideId "14700182"]
[WhiteElo "2025"]
[BlackElo "1885"]
[Result "0-1"]
[Round "04"]
[TimeControl "180+2"]
[Date "2023.03.07"]
[WhiteClock "0:00:05"]
[BlackClock "0:01:20"]

1. e4 {[%clk 0:01:19]}  c6 {[%clk 0:02:57]} 2. f4 {[%clk 0:01:19]}  d5 {[%clk 0:02:55]} 3. e5 {[%clk 0:01:20]}  Bf5 {[%clk 0:02:52]} 4. Nf3 {[%clk 0:01:20]}  e6 {[%clk 0:02:51]} 5. h3 {[%clk 0:01:17]}  h5 {[%clk 0:02:50]} 6. d3 {[%clk 0:01:16]}  h4 {[%clk 0:02:40]} 7. Be2 {[%clk 0:01:12]}  Ne7 {[%clk 0:02:40]} 8. Nh2 {[%clk 0:01:12]}  Ng6 {[%clk 0:02:39]} 9. Ng4 {[%clk 0:01:07]}  Be7 {[%clk 0:02:38]} 10. d4 {[%clk 0:01:06]}  O-O {[%clk 0:02:30]} 11. O-O {[%clk 0:01:03]}  c5 {[%clk 0:02:29]} 12. c3 {[%clk 0:01:03]}  Nc6 {[%clk 0:02:29]} 13. Be3 {[%clk 0:01:01]}  cxd4 {[%clk 0:02:25]} 14. cxd4 {[%clk 0:01:00]}  Qb6 {[%clk 0:02:26]} 15. b3 {[%clk 0:00:58]}  Rac8 {[%clk 0:02:23]} 16. Nc3 {[%clk 0:00:51]}  Nb4 {[%clk 0:02:17]} 17. Na4 {[%clk 0:00:49]}  Qd8 {[%clk 0:02:16]} 18. Rc1 {[%clk 0:00:38]}  Nxa2 {[%clk 0:02:13]} 19. Nc5 {[%clk 0:00:35]}  b6 {[%clk 0:02:12]} 20. Nd3 {[%clk 0:00:31]}  Nxc1 {[%clk 0:02:11]} 21. Bxc1 {[%clk 0:00:30]}  Qc7 {[%clk 0:02:03]} 22. Bd2 {[%clk 0:00:25]}  a5 {[%clk 0:01:53]} 23. b4 {[%clk 0:00:22]}  Qc4 {[%clk 0:01:46]} 24. Nc5 {[%clk 0:00:17]}  Qxd4+ {[%clk 0:01:46]} 25. Be3 {[%clk 0:00:15]}  Qxb4 {[%clk 0:01:46]} 26. Nd7 {[%clk 0:00:11]}  Bc5 {[%clk 0:01:38]} 27. Bxc5 {[%clk 0:00:09]}  bxc5 {[%clk 0:01:23]} 28. Nxf8 {[%clk 0:00:05]}  Rxf8 {[%clk 0:01:23]} 29. Nf6+ {[%clk 0:00:05]}  gxf6 {[%clk 0:01:22]} 30. exf6 {[%clk 0:00:06]}  Qd4+ {[%clk 0:01:20]} 31. Kh1 {[%clk 0:00:05]}  Qxf6 {[%clk 0:01:20]} 0-1


[Site "https://www.chess.com"]

[Event "Titled Tuesday Blitz March 07 Late 2023"]
[White "Fedoseev, Vladimir"]
[Black "Ibarra Jerez, Jose Carlos"]
[WhiteFideId "24130737"]
[BlackFideId "2226332"]
[WhiteElo "2752"]
[BlackElo "2638"]
[Result "1-0"]
[Round "05"]
[TimeControl "180+2"]
[Date "2023.03.07"]
[WhiteClock "0:00:11"]
[BlackClock "0:00:02"]

1. e4 {[%clk 0:03:00]}  c5 {[%clk 0:02:59]} 2. Nf3 {[%clk 0:03:00]}  Nc6 {[%clk 0:02:59]} 3. Bb5 {[%clk 0:02:59]}  e6 {[%clk 0:02:59]} 4. Bxc6 {[%clk 0:02:57]}  bxc6 {[%clk 0:03:00]} 5. b3 {[%clk 0:02:56]}  e5 {[%clk 0:02:55]} 6. Nxe5 {[%clk 0:02:56]}  Qe7 {[%clk 0:02:55]} 7. d4 {[%clk 0:02:56]}  f6 {[%clk 0:02:51]} 8. Nf3 {[%clk 0:02:55]}  Qxe4+ {[%clk 0:02:52]} 9. Kd2 {[%clk 0:02:56]}  Qf4+ {[%clk 0:02:37]} 10. Kc3 {[%clk 0:02:54]}  cxd4+ {[%clk 0:02:37]} 11. Kb2 {[%clk 0:02:38]}  Qg4 {[%clk 0:02:37]} 12. Re1+ {[%clk 0:02:17]}  Ne7 {[%clk 0:02:34]} 13. g3 {[%clk 0:02:15]}  c5 {[%clk 0:02:25]} 14. Bf4 {[%clk 0:02:11]}  Bb7 {[%clk 0:02:14]} 15. Nbd2 {[%clk 0:02:10]}  O-O-O {[%clk 0:01:54]} 16. h3 {[%clk 0:02:02]}  Qxh3 {[%clk 0:01:50]} 17. Nc4 {[%clk 0:02:00]}  Nd5 {[%clk 0:01:44]} 18. Bd6 {[%clk 0:01:32]}  Nb6 {[%clk 0:01:37]} 19. Nfd2 {[%clk 0:01:31]}  Bd5 {[%clk 0:01:25]} 20. Bxf8 {[%clk 0:01:19]}  Rhxf8 {[%clk 0:01:23]} 21. Nd6+ {[%clk 0:01:16]}  Kc7 {[%clk 0:01:23]} 22. N2e4 {[%clk 0:01:08]}  Bxe4 {[%clk 0:01:10]} 23. Nxe4 {[%clk 0:01:08]}  Qf5 {[%clk 0:01:11]} 24. Qd3 {[%clk 0:00:56]}  d6 {[%clk 0:00:57]} 25. a4 {[%clk 0:00:44]}  Qd7 {[%clk 0:00:47]} 26. c3 {[%clk 0:00:29]}  Qc6 {[%clk 0:00:17]} 27. a5 {[%clk 0:00:17]}  Nd5 {[%clk 0:00:15]} 28. cxd4 {[%clk 0:00:18]}  Nb4 {[%clk 0:00:12]} 29. Qc3 {[%clk 0:00:17]}  Kb8 {[%clk 0:00:12]} 30. dxc5 {[%clk 0:00:16]}  dxc5 {[%clk 0:00:13]} 31. Re2 {[%clk 0:00:06]}  Rd3 {[%clk 0:00:12]} 32. Qxc5 {[%clk 0:00:06]}  Qxc5 {[%clk 0:00:06]} 33. Nxc5 {[%clk 0:00:07]}  Rd5 {[%clk 0:00:07]} 34. Ka3 {[%clk 0:00:06]}  Rxc5 {[%clk 0:00:06]} 35. Kxb4 {[%clk 0:00:06]}  Rc7 {[%clk 0:00:07]} 36. Rae1 {[%clk 0:00:06]}  Rfc8 {[%clk 0:00:06]} 37. Re7 {[%clk 0:00:06]}  Kb7 {[%clk 0:00:06]} 38. R1e6 {[%clk 0:00:06]}  h5 {[%clk 0:00:05]} 39. a6+ {[%clk 0:00:06]}  Kb8 {[%clk 0:00:05]} 40. Rxc7 {[%clk 0:00:03]}  Kxc7 {[%clk 0:00:03]} 41. Re7+ {[%clk 0:00:03]}  Kb6 {[%clk 0:00:04]} 42. Rxg7 {[%clk 0:00:03]}  Kxa6 {[%clk 0:00:05]} 43. Rg6 {[%clk 0:00:04]}  Rc6 {[%clk 0:00:05]} 44. Rh6 {[%clk 0:00:05]}  Rb6+ {[%clk 0:00:05]} 45. Kc4 {[%clk 0:00:05]}  Rc6+ {[%clk 0:00:06]} 46. Kd5 {[%clk 0:00:05]}  Rb6 {[%clk 0:00:06]} 47. Kc4 {[%clk 0:00:05]}  Rc6+ {[%clk 0:00:06]} 48. Kd3 {[%clk 0:00:05]}  Kb5 {[%clk 0:00:06]} 49. Rxh5+ {[%clk 0:00:05]}  Kb4 {[%clk 0:00:06]} 50. Rh7 {[%clk 0:00:05]}  Kxb3 {[%clk 0:00:04]} 51. Rxa7 {[%clk 0:00:06]}  Rd6+ {[%clk 0:00:05]} 52. Ke4 {[%clk 0:00:06]}  Kc2 {[%clk 0:00:05]} 53. f4 {[%clk 0:00:06]}  Kd2 {[%clk 0:00:05]} 54. g4 {[%clk 0:00:07]}  Ke2 {[%clk 0:00:05]} 55. Ra2+ {[%clk 0:00:07]}  Kf1 {[%clk 0:00:05]} 56. Kf5 {[%clk 0:00:08]}  Rb6 {[%clk 0:00:05]} 57. Rd2 {[%clk 0:00:07]}  Ke1 {[%clk 0:00:05]} 58. Rh2 {[%clk 0:00:07]}  Kf1 {[%clk 0:00:05]} 59. Rh6 {[%clk 0:00:08]}  Kg2 {[%clk 0:00:05]} 60. Rxf6 {[%clk 0:00:08]}  Rb5+ {[%clk 0:00:06]} 61. Kg6 {[%clk 0:00:09]}  Kg3 {[%clk 0:00:06]} 62. g5 {[%clk 0:00:09]}  Kg4 {[%clk 0:00:07]} 63. Kh6 {[%clk 0:00:09]}  Rb8 {[%clk 0:00:07]} 64. g6 {[%clk 0:00:10]}  Rh8+ {[%clk 0:00:06]} 65. Kg7 {[%clk 0:00:11]}  Rb8 {[%clk 0:00:05]} 66. Kh7 {[%clk 0:00:11]}  Rb6 {[%clk 0:00:02]} 67. Rxb6 {[%clk 0:00:11]} 1-0


[Site "https://www.chess.com"]

[Event "Titled Tuesday Blitz March 07 Late 2023"]
[White "Martinez Alcantara, Jose Eduardo"]
[Black "Yoo, Christopher Woojin"]
[WhiteFideId "3805662"]
[BlackFideId "30909694"]
[WhiteElo "2712"]
[BlackElo "2519"]
[Result "1-0"]
[Round "05"]
[TimeControl "180+2"]
[Date "2023.03.07"]
[WhiteClock "0:00:31"]
[BlackClock "0:00:02"]

1. e4 {[%clk 0:03:00]}  c5 {[%clk 0:02:41]} 2. Nf3 {[%clk 0:03:01]}  d6 {[%clk 0:02:40]} 3. c3 {[%clk 0:03:01]}  Nf6 {[%clk 0:02:39]} 4. h3 {[%clk 0:03:01]}  g6 {[%clk 0:02:37]} 5. Bd3 {[%clk 0:03:02]}  Bg7 {[%clk 0:02:38]} 6. Bc2 {[%clk 0:03:03]}  O-O {[%clk 0:02:37]} 7. O-O {[%clk 0:03:04]}  Nc6 {[%clk 0:02:37]} 8. d4 {[%clk 0:03:04]}  cxd4 {[%clk 0:02:37]} 9. cxd4 {[%clk 0:03:05]}  e5 {[%clk 0:02:37]} 10. d5 {[%clk 0:03:05]}  Nb4 {[%clk 0:02:37]} 11. Nc3 {[%clk 0:03:06]}  Nxc2 {[%clk 0:02:36]} 12. Qxc2 {[%clk 0:03:07]}  Bd7 {[%clk 0:02:30]} 13. a4 {[%clk 0:03:06]}  Rc8 {[%clk 0:02:25]} 14. Qb3 {[%clk 0:03:03]}  Qc7 {[%clk 0:02:24]} 15. Be3 {[%clk 0:03:00]}  b6 {[%clk 0:02:15]} 16. Rfc1 {[%clk 0:02:46]}  Nh5 {[%clk 0:02:11]} 17. Nb5 {[%clk 0:02:38]}  Qb8 {[%clk 0:02:10]} 18. Qb4 {[%clk 0:02:39]}  Rxc1+ {[%clk 0:01:56]} 19. Rxc1 {[%clk 0:02:40]}  Bxb5 {[%clk 0:01:39]} 20. axb5 {[%clk 0:02:39]}  Nf4 {[%clk 0:01:30]} 21. Rc6 {[%clk 0:02:32]}  Rd8 {[%clk 0:01:30]} 22. g3 {[%clk 0:02:28]}  Nd3 {[%clk 0:01:19]} 23. Qc4 {[%clk 0:02:11]}  Nc5 {[%clk 0:01:19]} 24. b4 {[%clk 0:02:06]}  Nd7 {[%clk 0:01:20]} 25. Qc2 {[%clk 0:01:56]}  Rf8 {[%clk 0:01:09]} 26. Nd2 {[%clk 0:01:54]}  f5 {[%clk 0:01:07]} 27. Bg5 {[%clk 0:01:46]}  Bf6 {[%clk 0:00:41]} 28. Bxf6 {[%clk 0:01:39]}  Nxf6 {[%clk 0:00:42]} 29. exf5 {[%clk 0:01:39]}  gxf5 {[%clk 0:00:35]} 30. Qxf5 {[%clk 0:01:40]}  Kg7 {[%clk 0:00:26]} 31. Qe6 {[%clk 0:01:15]}  Re8 {[%clk 0:00:19]} 32. Qxd6 {[%clk 0:01:09]}  Qxd6 {[%clk 0:00:19]} 33. Rxd6 {[%clk 0:01:10]}  Rc8 {[%clk 0:00:19]} 34. Rc6 {[%clk 0:01:00]}  Rd8 {[%clk 0:00:17]} 35. d6 {[%clk 0:01:01]}  Kf7 {[%clk 0:00:17]} 36. Nf3 {[%clk 0:00:56]}  Nd7 {[%clk 0:00:16]} 37. Rc7 {[%clk 0:00:51]}  Ke6 {[%clk 0:00:16]} 38. Rxa7 {[%clk 0:00:52]}  Kxd6 {[%clk 0:00:16]} 39. Ng5 {[%clk 0:00:53]}  Rc8 {[%clk 0:00:15]} 40. Nxh7 {[%clk 0:00:47]}  Rc4 {[%clk 0:00:14]} 41. h4 {[%clk 0:00:45]}  Rxb4 {[%clk 0:00:15]} 42. h5 {[%clk 0:00:46]}  Rxb5 {[%clk 0:00:15]} 43. h6 {[%clk 0:00:42]}  e4 {[%clk 0:00:15]} 44. Rxd7+ {[%clk 0:00:41]}  Kxd7 {[%clk 0:00:14]} 45. Nf6+ {[%clk 0:00:42]}  Ke6 {[%clk 0:00:15]} 46. h7 {[%clk 0:00:43]}  e3 {[%clk 0:00:15]} 47. h8=Q {[%clk 0:00:42]}  exf2+ {[%clk 0:00:15]} 48. Kxf2 {[%clk 0:00:41]}  Rf5+ {[%clk 0:00:15]} 49. Kg2 {[%clk 0:00:42]}  Rxf6 {[%clk 0:00:16]} 50. Qd8 {[%clk 0:00:41]}  Kf5 {[%clk 0:00:15]} 51. g4+ {[%clk 0:00:40]}  Kg5 {[%clk 0:00:16]} 52. Kg3 {[%clk 0:00:40]}  b5 {[%clk 0:00:12]} 53. Qe7 {[%clk 0:00:39]}  Kg6 {[%clk 0:00:11]} 54. Qe8+ {[%clk 0:00:38]}  Kg7 {[%clk 0:00:10]} 55. Qxb5 {[%clk 0:00:39]}  Rg6 {[%clk 0:00:10]} 56. g5 {[%clk 0:00:39]}  Re6 {[%clk 0:00:09]} 57. Kf4 {[%clk 0:00:39]}  Re7 {[%clk 0:00:08]} 58. Kg4 {[%clk 0:00:39]}  Rf7 {[%clk 0:00:05]} 59. Kh5 {[%clk 0:00:39]}  Re7 {[%clk 0:00:05]} 60. Qb2+ {[%clk 0:00:39]}  Kg8 {[%clk 0:00:05]} 61. Qf6 {[%clk 0:00:30]}  Rh7+ {[%clk 0:00:04]} 62. Kg4 {[%clk 0:00:31]}  Rh1 {[%clk 0:00:02]} 63. Qe6+ {[%clk 0:00:30]}  Kg7 {[%clk 0:00:02]} 64. Qe5+ {[%clk 0:00:31]}  Kg8 {[%clk 0:00:02]} 65. Qd5+ {[%clk 0:00:31]} 1-0


[Site "https://www.chess.com"]